Cogmind - Beta 15 @@@ ROGUE MODE // 2025.07.05 @ 15:47:01 Player: mathSq Result: Core destroyed Performance ------------- Evolutions (3) 1500 Regions Visited (5) 1000 Robots Destroyed (95) 475 Value Destroyed (2718) 2718 Prototype IDs (9) 180 Alien Tech Used (0) 0 Bonus (0) 0 TOTAL SCORE: 5873 Bonus ------- None Cogmind --------- Core Integrity 0/700 Matter 43/300 Energy 54/100 System Corruption 8% Temperature Critical (576) Movement Core (1450) Ox28 Location -7/Factory Parts ------- > --- POWER (2) -------- (None) > --- PROPULSION (4) --- (None) > --- UTILITY (4) ------ Huge Storage Unit > --- WEAPON (3) ------- Heavy Particle Cannon > --- INVENTORY (25) --- Light Nuclear Core Light Treads Light Treads Light Treads Cooling System Medium Matter Pod (0) Seismic Detector Heavy Armor Plating Improved Medium Armor Plating Hacking Suite Hacking Suite Improved Medium Laser Pulse Rifle Precision Beam Rifle Light EM Pulse Cannon Improved Datajack Maul Peak State ------------ > --- POWER ------------ Cooled Ion Engine Micro Nuclear Core > --- PROPULSION ------- Light Treads Light Treads Light Treads Medium Treads > --- UTILITY ---------- Cooling System Huge Storage Unit Heavy Armor Plating > --- WEAPON ----------- Heavy Particle Cannon Heavy Particle Cannon Heavy Ion Cannon > --- INVENTORY -------- Light Nuclear Core Light Treads Light Treads Light Treads Cooling System Medium Matter Pod Seismic Detector Heavy Armor Plating Improved Medium Armor Plating Hacking Suite Hacking Suite Improved Medium Laser Pulse Rifle Precision Beam Rifle Light EM Pulse Cannon Heavy Particle Cannon Rocket Launcher Rocket Launcher Improved Datajack Maul [Rating: 38] Favorites ----------- Power Cooled Ion Engine Engine Cooled Ion Engine Power Core Nuclear Core Propulsion Light Treads Treads Light Treads Wheel Armored Wheel Utility Huge Storage Unit Device Seismic Detector Storage Huge Storage Unit Hackware Authchip [Processor] Protection Medium Armor Plating Weapon Precision Beam Rifle Energy Gun Precision Beam Rifle Energy Cannon Heavy Particle Cannon Launcher Rocket Launcher Special Weapon Mining Laser Impact Weapon Maul Special Melee Weapon Improved Datajack Build | -11 -10 -9 -9 -8 -7 ------- Run | Yrd Mat Mat Min Mat Fac Slots Evolved 6 | . . 2 . 2 2 Power 1 | . . . . . 1 Propulsion 2 | . . 1 . . 1 Utility 2 | . . . . 2 . Weapon 1 | . . 1 . . . Parts Attached 64 | 7 5 24 1 15 12 Power 8 | 1 2 3 . . 2 Engine 4 | 1 1 1 . . 1 Core 4 | . 1 2 . . 1 Reactor . | . . . . . . Propulsion 14 | 2 . 6 . 3 3 Treads 9 | 2 . 3 . 2 2 Leg . | . . . . . . Wheel 5 | . . 3 . 1 1 Hover . | . . . . . . Flight . | . . . . . . Utility 20 | 2 3 5 1 5 4 Device 10 | 1 1 3 1 2 2 Storage 5 | 1 1 2 . 1 . Processor . | . . . . . . Hackware 1 | . . . . . 1 Protection 4 | . 1 . . 2 1 Artifact . | . . . . . . Weapon 22 | 2 . 10 . 7 3 Energy Gun 10 | 2 . 7 . 1 . Energy Cannon 5 | . . . . 3 2 Ballistic Gun . | . . . . . . Ballistic Cannon . | . . . . . . Launcher 4 | . . 2 . 1 1 Special Weapon 1 | . . 1 . . . Impact Weapon 1 | . . . . 1 . Slashing Weapon . | . . . . . . Piercing Weapon . | . . . . . . Special Melee Weapon 1 | . . . . 1 . Unidentified Prototypes 2 | . . 2 . . . Parts Lost 31 | . . 8 . 6 17 Power 4 | . . 1 . . 3 Propulsion 11 | . . 4 . 3 4 Utility 9 | . . 2 . 2 5 Weapon 7 | . . 1 . 1 5 Highest Loss Streak 17 | . . 2 . 5 17 To Critical Strikes . | . . . . . . Average Backups 20 | 4 13 21 22 22 20 Power 1 | . 1 2 1 1 1 Propulsion 4 | 3 3 3 5 5 2 Utility 7 | . 5 8 8 8 8 Weapon 5 | . 2 5 6 6 7 Tool/Special . | . . . . . . Unused Backups 42 | . 7 15 1 7 12 Power 8 | . 3 4 . . 1 Propulsion 8 | . 2 . . 3 3 Utility 20 | . 2 9 1 2 6 Weapon 5 | . . 1 . 2 2 Tool/Special 1 | . . 1 . . . Average Slot Usage (%) 99 | . 100 99 100 99 96 Engine 9 | . 8 5 11 9 14 Core 2 | . 5 5 . . . Treads 21 | . 28 21 22 17 20 Wheel 8 | . . 10 11 8 8 Device 14 | . 13 10 11 21 14 Storage 10 | . 14 11 11 9 7 Protection 2 | . . . . 5 6 Energy Gun 23 | . 28 32 32 16 2 Energy Cannon 5 | . . . . 10 18 Peak Build Rating 38 | 7 10 27 26 30 38 Average Rating 23 | 5 8 23 24 28 32 On Entrance 15 | . 7 9 25 25 27 Naked Turns . | . . . . . . Heaviest Build 126 | 15 32 97 96 114 126 Greatest Support 88 | 40 40 20 12 12 88 Greatest Overweight (x) 10 | 1 . 9 7 9 10 Average Overweight (x) 5 | . . 7 7 8 5 Largest Inventory Capacity 25 | 8 15 25 25 25 25 Average Capacity 22 | 7 14 25 25 25 25 Most Carried 25 | 7 15 25 25 25 25 Average Carried 21 | 4 13 23 24 24 22 Final Capacity 25 | 8 15 25 25 25 25 Final Carried 25 | 7 15 24 25 21 18 Class Distribution -------------------- 44% | Gunner 31% | Tank 18% | Mutant 3% | Scavenger-Tank Dominant Class ---------------- Mutant | -10/Materials Gunner | -9/Materials Gunner | -9/Mines Tank | -8/Materials Tank | -7/Factory Resources | -11 -10 -9 -9 -8 -7 ----------- Run | Yrd Mat Mat Min Mat Fac Matter Collected 1510 | 270 229 358 147 278 228 Remotely . | . . . . . . Salvage Created 2959 | 28 275 1135 73 946 502 Parts 162 | 2 11 53 19 51 26 Haulers Intercepted 9 | . 1 4 . 3 1 Recyclers Shooed . | . . . . . . Parts Field Recycled . | . . . . . . Retrieved Matter . | . . . . . . Parts Self-Destructed . | . . . . . . Prevented . | . . . . . . Kills | -11 -10 -9 -9 -8 -7 ------- Run | Yrd Mat Mat Min Mat Fac Combat Hostiles Destroyed 73 | . 5 26 8 23 11 Guns 30 | . 5 16 1 8 . Cannons 12 | . . . . 7 5 AOE 29 | . . 9 7 8 5 Classes Destroyed 11 | 1 2 3 . 3 2 Worker 1 | . . . . . 1 Builder 5 | . . 2 1 2 . Tunneler 5 | 1 . 3 1 . . Hauler 9 | . 1 4 . 3 1 Recycler 1 | . . . . . 1 Operator 1 | . . . . 1 . Swarmer 22 | . . 6 8 4 4 Grunt 37 | . 5 14 . 13 5 Duelist 2 | . . . . 1 1 Sentry 11 | . . 6 . 4 1 Hunter 1 | . . . . 1 . Best Kill Streak 9 | 1 3 8 5 6 9 Combat Bots Only 7 | . 3 7 4 6 7 Max Kills in Single Turn 4 | 1 1 4 4 3 3 Gunslinging 1 | . . 1 . . . Exploded 4 | . . 3 4 3 3 Melee . | . . . . . . Uniques/NPCs Destroyed . | . . . . . . Combat | -11 -10 -9 -9 -8 -7 -------- Run | Yrd Mat Mat Min Mat Fac Hostile Shots Fired 354 | . 21 70 18 77 168 Missed 91 | . 2 18 10 22 39 Hits 263 | . 19 52 8 55 129 Melee 8 | . . . . . 8 Projectile 255 | . 19 52 8 55 121 AOE 1 | . . . . . 1 Critical Strikes 10 | . . 1 . 2 7 Part Disruptions 1 | . . . . . 1 Damage Taken 4866 | . 325 872 84 1035 2550 Core 1088 | . 56 116 20 138 758 Absorbed by Shields 52 | . . . . 52 . Core Remaining (%) 79 | 100 77 . 66 74 . Volleys Fired 158 | 3 21 51 7 46 30 Largest 3 | 2 2 3 3 3 3 Hottest 215 | 100 100 183 178 213 215 Shots Fired 377 | 6 42 141 12 118 58 Gun 276 | 6 42 135 7 79 7 Cannon 74 | . . . . 30 44 Launcher 25 | . . 4 5 9 7 Special 2 | . . 2 . . . Kinetic . | . . . . . . Thermal 352 | 6 42 137 7 109 51 Explosive 25 | . . 4 5 9 7 Electromagnetic . | . . . . . . Robot Hit Streak 27 | 5 10 19 15 27 12 Robot Miss Streak 2 | . 1 2 . 2 1 Penetration Max . | . . . . . . Secondary Targets 4 | . 2 2 . . . Max Gunslinging Chain 1 | . 1 1 . . . Shots Hit Robots 254 | 5 32 96 3 84 34 Core Hits 155 | 1 15 45 10 56 28 Critical Kills . | . . . . . . Critical Parts Destroyed . | . . . . . . Critical Strikes 22 | . 2 15 . 4 1 Burn 22 | . 2 15 . 4 1 Melee Attacks 7 | . . . . 1 6 Impact 7 | . . . . 1 6 Slashing . | . . . . . . Piercing . | . . . . . . Sneak Attacks 1 | . . . . . 1 Combat Hostiles . | . . . . . . Follow-up Attacks . | . . . . . . Damage Inflicted 7746 | 62 406 2448 554 2675 1601 Guns 3281 | 62 406 1629 34 1053 97 Cannons 1198 | . . . . 452 746 Explosions 3135 | . . 801 518 1154 662 Melee 64 | . . . . . 64 Ramming 68 | . . 18 2 16 32 Kinetic . | . . . . . . Thermal 4644 | 62 406 1794 34 1505 843 Explosive 2970 | . . 636 518 1154 662 Electromagnetic . | . . . . . . Impact 64 | . . . . . 64 Slashing . | . . . . . . Piercing . | . . . . . . Highest Corruption 8 | . 1 1 1 . 8 Average Corruption 1 | . 1 1 1 . 4 Corruption Purged . | . . . . . . Corruption Blocked . | . . . . . . Effects 22 | . 2 12 6 . 2 Message Errors 7 | . . 4 2 . 1 Matter Fused 5 | . 1 3 1 . . Heat Flow Errors 4 | . . 1 2 . 1 Energy Discharges 1 | . . 1 . . . Parts Fused 1 | . . 1 . . . Data Loss (minor) 1 | . . 1 . . . Data Loss (major) 1 | . 1 . . . . Misfires 1 | . . . 1 . . Alerts 1 | . . 1 . . . Overload Shots . | . . . . . . Overflow Damage 169 | . . 41 10 19 99 Projectiles 19 | . . . . . 19 Explosions 150 | . . 41 10 19 80 Melee . | . . . . . . Knockbacks 1 | . . . . . 1 Impact 1 | . . . . . 1 Kinetic . | . . . . . . Secondary . | . . . . . . Self-Inflicted Damage 754 | . . 183 30 243 298 Shots 21 | . . 4 2 8 7 Rammed 9 | . . 3 1 4 1 Targets Rammed 9 | . . 3 1 4 1 Kicked . | . . . . . . Crushed . | . . . . . . Highest Temperature 632 | 117 373 356 205 181 632 Average Temperature 106 | 59 138 84 64 63 231 Received Heat Transfer 1343 | . 138 318 . 368 519 Effects 20 | . 1 6 . . 13 Shutdowns 2 | . . . . . 2 Interference 9 | . . 6 . . 3 Short Circuit 1 | . . . . . 1 Damage (minor) 1 | . 1 . . . . Damage (major) 3 | . . . . . 3 Damage (core) 4 | . . . . . 4 Siege Activations . | . . . . . . Martial Activations . | . . . . . . Shielding Activations . | . . . . . . Robots Disrupted . | . . . . . . Combat Hostiles . | . . . . . . Robots Corrupted . | . . . . . . Combat Hostiles . | . . . . . . Parts Fried . | . . . . . . Impact Corruptions . | . . . . . . Robots Melted 2 | . . 1 . . 1 Combat Hostiles 2 | . . 1 . . 1 Parts Melted 33 | . 4 14 . 13 2 Heat Transferred 10941 | 185 1332 4873 74 3182 1295 Parts Sabotaged . | . . . . . . Parts Stolen . | . . . . . . Parts Stripped . | . . . . . . Power Chain Reactions . | . . . . . . Alert | -11 -10 -9 -9 -8 -7 ------- Run | Yrd Mat Mat Min Mat Fac Maximum Alert Level 1 | . . 1 1 1 . Low Security (%) 82 | 100 100 64 85 78 100 Level 1 17 | . . 35 14 21 . Level 2 . | . . . . . . Level 3 . | . . . . . . Level 4 . | . . . . . . Level 5 . | . . . . . . High Security . | . . . . . . Max Security . | . . . . . . Peak Influence 327 | 5 80 327 240 274 179 Initial 117 | . . 10 117 . 111 Average 90 | . 13 118 111 100 98 Influence Increases 2529 | 5 166 837 248 801 472 Destroy 0b10 Robot/C 1460 | . 100 520 160 460 220 Destroy 0b10 Robot/NC 110 | 5 5 45 10 30 15 Destroy Leader 328 | . 32 138 20 96 42 Successful Hack 143 | . 29 45 . 67 2 Disable Machine 150 | . . 30 . 30 90 Destroy Structure 233 | . . 44 43 73 73 Lose Combat Pursuer 105 | . . 15 15 45 30 Influence Decreases 2442 | 5 140 560 551 555 631 Entered New Map 337 | . . 16 186 . 135 Time Decay 1738 | 5 140 407 365 495 326 Lost Part 300 | . . 70 . 60 170 Purge Threat 67 | . . 67 . . . Squads Dispatched 8 | . 1 1 . 2 4 Investigation 2 | . . 1 . . 1 Extermination 1 | . . . . . 1 Reinforcement 4 | . 1 . . 2 1 Assault . | . . . . . . Garrison 1 | . . . . . 1 Intercept . | . . . . . . Searches Triggered . | . . . . . . Construction Impeded 2 | . . . . 2 . Haulers Reinforced . | . . . . . . Active Scanning Responses . | . . . . . . Cargo Convoy Interrupts . | . . . . . . Stealth | -11 -10 -9 -9 -8 -7 --------- Run | Yrd Mat Mat Min Mat Fac Distress Signals 10 | . 1 4 . 4 1 Communications Jammed . | . . . . . . Distress Signals . | . . . . . . Times Spotted 112 | . 10 42 9 34 17 Peak Tracking Total 9 | . 4 6 4 7 9 Tactical Retreats 6 | . . 1 1 3 1 Traps | -11 -10 -9 -9 -8 -7 ------- Run | Yrd Mat Mat Min Mat Fac Traps Triggered 7 | . 5 2 . . . Indirectly . | . . . . . . Trap Hack Attempts 32 | . . . . 32 . Triggered . | . . . . . . Disarmed . | . . . . . . Reprogrammed 2 | . . . . 2 . Reused . | . . . . . . Traps Extracted . | . . . . . . Installed . | . . . . . . Triggered . | . . . . . . Machines | -11 -10 -9 -9 -8 -7 ---------- Run | Yrd Mat Mat Min Mat Fac Machines Disabled 10 | . . 2 . 2 6 Max in Single Turn 5 | . . 1 . 1 5 Garrison Access 1 | . . . . 1 . Machines Repaired . | . . . . . . Machines Dismantled . | . . . . . . Machines Sabotaged . | . . . . . . Overloaded Fab Kills . | . . . . . . Hacking | -11 -10 -9 -9 -8 -7 --------- Run | Yrd Mat Mat Min Mat Fac Machines Accessed 31 | . 5 11 . 11 4 Terminals 22 | . 5 9 . 8 . Fabricators 2 | . . . . . 2 Repair Stations 1 | . . 1 . . . Recycling Units . | . . . . . . Scanalyzers 5 | . . 1 . 2 2 Garrison Access 1 | . . . . 1 . Total Hacks 95 | . 19 34 . 33 9 Successful 57 | . 10 19 . 20 8 Failed 38 | . 9 15 . 13 1 Catastrophic 9 | . 1 4 . 4 . Database Lockouts . | . . . . . . Manual 26 | . 10 9 . 6 1 Terminals 65 | . 19 26 . 20 . Fabricators 4 | . . . . . 4 Repair Stations 2 | . . 2 . . . Recycling Units . | . . . . . . Scanalyzers 23 | . . 6 . 12 5 Garrison Access 1 | . . . . 1 . Terminal Hacks 25 | . 5 13 . 7 . Robot Analysis 5 | . 2 2 . 1 . Prototype ID Bank 6 | . 2 3 . 1 . Level Access Points 1 | . . . . 1 . Branch Access Points 2 | . . 1 . 1 . Alert Level 2 | . . 1 . 1 . Unreport Threat 2 | . . 2 . . . Locate Traps 1 | . . 1 . . . Hauler Manifests 3 | . 1 1 . 1 . Registered Prototypes 1 | . . . . 1 . Zone Layout 2 | . . 2 . . . Fabricator Hacks 3 | . . . . . 3 Load Schematic 2 | . . . . . 2 Build 1 | . . . . . 1 Repair Station Hacks 1 | . . 1 . . . Scan Component 1 | . . 1 . . . Recycling Unit Hacks . | . . . . . . Scanalyzer 21 | . . 5 . 12 4 Insert Component 11 | . . 2 . 7 2 Analyze 10 | . . 3 . 5 2 Garrison Access Hacks 1 | . . . . 1 . Seal Access 1 | . . . . 1 . Unauthorized Hacks 6 | . 5 . . . 1 Terminals 5 | . 5 . . . . Skim 5 | . 5 . . . . Fabricators 1 | . . . . . 1 Recompile 1 | . . . . . 1 Repair Stations . | . . . . . . Recycling Units . | . . . . . . Scanalyzers . | . . . . . . Garrison Access . | . . . . . . Data Cores Recovered 1 | . . . . 1 . Used . | . . . . . . Hacking Detections 27 | . 5 10 . 10 2 Full Trace Events 1 | . . 1 . . . Feedback Events . | . . . . . . Feedback Blocked . | . . . . . . Robot Schematics Acquired . | . . . . . . Robots Built . | . . . . . . Authchips . | . . . . . . Time . | . . . . . . Total Robot Build Rating . | . . . . . . Part Schematics Acquired 9 | . . 2 . 5 2 Parts Built 1 | . . . . . 1 Authchips 1 | . . . . . 1 Time 36 | . . . . . 36 Total Part Build Rating 3 | . . . . . 3 Parts Repaired . | . . . . . . Time . | . . . . . . Parts Recycled . | . . . . . . Recycled Matter . | . . . . . . Retrieved Matter . | . . . . . . Retrieved Components . | . . . . . . Parts Scanalyzed 9 | . . 2 . 5 2 Part Schematics Acquired 9 | . . 2 . 5 2 Parts Damaged . | . . . . . . Bothacking | -11 -10 -9 -9 -8 -7 ------------ Run | Yrd Mat Mat Min Mat Fac Used RIF Installer . | . . . . . . Robots Hacked . | . . . . . . Non-combat . | . . . . . . Combat . | . . . . . . Robot Hacks Applied . | . . . . . . Relay Couplers Released . | . . . . . . Fabnet Peak Effective % . | . . . . . . Robots Rewired . | . . . . . . Allies Hacked . | . . . . . . Hacks Repelled . | . . . . . . Allies | -11 -10 -9 -9 -8 -7 -------- Run | Yrd Mat Mat Min Mat Fac Total Allies 1 | . . . 1 . . Largest Group 1 | . . . 1 . . Highest-Rated Group 31 | . . . 31 . . Highest-Rated Ally 31 | . . . 31 . . Total Orders . | . . . . . . Ally Attacks . | . . . . . . Total Damage . | . . . . . . Kills . | . . . . . . Allies Corrupted . | . . . . . . Allies Melted . | . . . . . . Intel | -11 -10 -9 -9 -8 -7 ------- Run | Yrd Mat Mat Min Mat Fac Active Infowar (turns) 3808 | 40 730 207 953 1256 622 Seismic 3808 | 40 730 207 953 1256 622 Robot Analysis Total 5 | . 2 2 . 1 . Derelict Logs Recovered 2 | . . . 2 . . Drone Launches . | . . . . . . Drone Recoveries . | . . . . . . Exploration | -11 -10 -9 -9 -8 -7 ------------- Run | Yrd Mat Mat Min Mat Fac Turns Passed 6049 | 122 978 1670 967 1573 739 Spaces Moved 2536 | 45 539 660 474 539 279 Core 2 | 2 . . . . . Treads 628 | 43 539 1 . . 45 Legs . | . . . . . . Wheels 1906 | . . 659 474 539 234 Hover . | . . . . . . Flight . | . . . . . . Fastest Speed 50 | 50 160 175 195 210 165 Average Speed 193 | 156 160 197 195 219 196 Slowest Speed 480 | 160 160 480 195 225 240 Overloaded Moves . | . . . . . . Propulsion Burnouts . | . . . . . . Robots Hopped . | . . . . . . Potential Cave-ins . | . . . . . . Cave-ins Triggered . | . . . . . . Exploration Rate (%) 53 | 4 78 74 96 56 10 Regions Visited 5 Branch Regions 1 Pre-discovered Areas . | . . . . . . Known Exits Taken 4 | . 1 1 1 1 . Unknown Exits Taken 1 | 1 . . . . . Scrap Searched 4 | . . . 4 . . Spaces Dug 77 | . . 28 27 2 20 Terrain Destroyed 253 | . . 38 59 70 86 Melee 6 | . . . . 1 5 Projectile 15 | . . 1 . 8 6 AOE 232 | . . 37 59 61 75 Terrain Rammed . | . . . . . . Walls Destroyed . | . . . . . . Machines Disabled . | . . . . . . Actions | -11 -10 -9 -9 -8 -7 --------- Run | Yrd Mat Mat Min Mat Fac Total 3346 | 87 619 916 504 821 399 Wait 339 | 26 27 109 5 133 39 Move 2531 | 44 538 659 473 538 279 Hop . | . . . . . . Pick Up 80 | 7 15 34 5 11 8 Fast Attach 25 | 7 2 6 . 5 5 Attach 26 | . . 8 . 8 10 Detach 3 | . . 1 . 1 1 Swap 75 | . 5 18 8 27 17 Drop 61 | . 11 27 5 15 3 Fire 158 | 3 21 51 7 46 30 Melee 7 | . . . . 1 6 Ram 2 | . . 2 . . . Kick . | . . . . . . Crush 7 | . . 1 1 4 1 Escape Stasis . | . . . . . . Rewire . | . . . . . . Trap 32 | . . . . 32 . Miscellaneous . | . . . . . . Route ------- -11/Scrapyard -10/Materials (discovered 5 exits: *Mat x3 / *Min / Sub) -9/Materials (discovered 3 exits: *Mat x2 / *Min) -9/Mines (discovered 3 exits: *Mat x2 / [*Exi]) -8/Materials (discovered 3 exits: *Fac x3) -7/Factory History --------- Turn | Location | Event 12 | -11/Scrapyard | Discovered new exit (range 15) 123 | -11/Scrapyard | Entered Materials 293 | -10/Materials | Discovered new exit (range 11) 306 | -10/Materials | Build established: Mutant 414 | -10/Materials | Discovered new exit (range 15) 620 | -10/Materials | Learned 4 Recycling zone layouts 690 | -10/Materials | Learned location of 2 exits from Subcaves 749 | -10/Materials | Identified exit to Materials 796 | -10/Materials | Identified exit to Mines 858 | -10/Materials | Learned 4 Recycling zone layouts 893 | -10/Materials | Loaded intel: 14 trap records 937 | -10/Materials | Identified exit to Subcaves 991 | -10/Materials | Learned 4 Recycling zone layouts 1101 | -10/Materials | Entered another Materials area 1101 | -9/Materials | Evolved 2 slots: Propulsion x1, Weapon x1 1102 | -9/Materials | Identified exit to Materials 1102 | -9/Materials | Identified exit to Mines 1402 | -9/Materials | Build established: Gunner 2205 | -9/Materials | Destroyed 7 combat bots 2771 | -9/Materials | Entered Mines 2815 | -9/Mines | Discovered exit to Materials (range 15) 2847 | -9/Mines | Deemed a non-threat by the Exiles lab entrance 2847 | -9/Mines | Discovered new exit (range 5) 3157 | -9/Mines | Joined a pair of Derelicts in attacking an 0b10 outpost 3238 | -9/Mines | Received a Mining Laser from a helpful Derelict 3451 | -9/Mines | Found a hidden stash of uninstalled traps 3464 | -9/Mines | Learned Materials trap positions 3687 | -9/Mines | Learned Materials terminal intel 3691 | -9/Mines | Discovered exit to Materials (range 12) 3738 | -9/Mines | Entered Materials 3738 | -8/Materials | Evolved 2 slots: Utility x2 3739 | -8/Materials | Loaded intel: 21 trap records 3740 | -8/Materials | Loaded intel: 9 terminal locations 3960 | -8/Materials | Identified exit to Factory 4025 | -8/Materials | Build established: Tank 5076 | -8/Materials | Lost 5 parts (3n1u1w) 5311 | -8/Materials | Entered Factory 5311 | -7/Factory | Evolved 2 slots: Power x1, Propulsion x1 5634 | -7/Factory | Fabricated Hacking Suite (x1) 6003 | -7/Factory | Garrison activated, responded to threat 6041 | -7/Factory | Core integrity fell below 50% 6043 | -7/Factory | Core integrity fell below 20% 6051 | -7/Factory | Core destroyed Last Messages --------------- 06040_ Overheating: Core damaged (-105). 06040_ Cld. Ion Engine destroyed. 06041_ Overheating: Core damaged (-91). 06042_ Overheating: Core damaged (-105). 06043_ S-27 Virus destroyed. 06043_ Broken Med. Treads destroyed. 06043_ Destroyed Broken Med. Treads. 06043_ Rocket Launcher destroyed. 06044_ Overheating: Mic. Nuclear Core damaged (-7). 06044_ Overheating: Huge Storage Unit damaged (-173). 06044_ Overheating: Cooling System damaged (-15). 06044_ Mic. Nuclear Core destroyed. 06047_ Nuclear Reactor explodes. 06047_ Cooling System destroyed. 06047_ Hvy. Particle Cannon destroyed. 06047_ Nuclear Reactor explodes. 06047_ P-60 Hacker destroyed. 06048_ The unstable cave ceiling collapses. 06049_ G-47 Trooper destroyed. 06051_ Overheating: Core damaged (-70). Map ----- +----------------------------------------------------+ | ?????????????????????????????????????????????????? | | ?????????????????????????????????????????????????? | | ?????????????????????????????????????????????????? | | ?????????????????????????????????????????????????? | | ?????????????????????????????????????????????????? | | ?????????????????????????????????????????????????? | | ?????????????????????????????????????????????????? | | ?????????????????????????????????????????????????? | | ?????????????????????????????????????????????????? | | ?????????????????????????????????????????????????? | | ??????????????????????????? ?????????????????????? | | ?????????????????????????? ?????????????????????? | | ?????????????????? ??????? ????#????????????????? | | ???????????????? ? ?????? ??? #??????? ???????? | | ?????????????? ?????? ""? #??????? ? ????? | | ?????????????? ! ????? """ #??????? ? ????? | | ?????????????" =%# ????? """ #??????? ? ????? | | ?????????????"" = ???? ??????? ? ????? | | ?????????????? % #### ###### ? ???? | | ??????????????"" %%* ? ???" | | ????????????"""" %= # """?" | | ??????????? = k + """"" | | ??????????? % # | | ????????????T" t Y # """ | | ????????????"" #%! ######?????# # """"" | | ?????????? @= #??????# # """"" | | ?????????? !% ! #??????# # | | ?????????? # #??????# # """ | | ?????????????????### ######## # """"" | | ??????????????????# + + """"" | | ??????????????????# ########## | | ??????????????????# #????????#####+## | | ??????????????????# #????????????# ## | | ??????????????????# #????????????# ## | | ??????????????????# #????????????# ## | | ??????????????????# #????????????# ## | | ??????????????????## #????????????# # | | ???????????????????# ###????????????#### | | ???????????????????### ####?????????????????# | | ?????????????????????########????????????????????# | | ?????????????????????????????????????????????????# | | ?????????????????????????????????????????????????? | | ?????????????????????????????????????????????????? | | ?????????????????????????????????????????????????? | | | | | | | | | | | | | +----------------------------------------------------+ Best States ------------- Heat Dissipation 78 Energy Generation 24 Energy Capacity 460 Matter Stores 300 Matter Capacity 300 Sight Range 16 Terrain Scan Density 10 Armor Coverage 600 Evasion (%) 40 Recoil Reduction 4 Particle Charging 15 Authchip Count 1 Item Schematics ----------------- Hvy. Armor Plating | -9/Materials | Scanalyzed Med. Armor Plating | -9/Materials | Scanalyzed Hacking Suite | -8/Materials | Scanalyzed Cooling System | -8/Materials | Scanalyzed Particle Charger | -8/Materials | Scanalyzed Cld. Ion Engine | -8/Materials | Scanalyzed Rocket Launcher | -8/Materials | Scanalyzed Imp. Medium Armor Plating | -7/Factory | Scanalyzed Lgt. Treads | -7/Factory | Scanalyzed Robot Schematics ------------------ None Fabricated ------------ Hacking Suite | x1 | -7/Factory | Authchip Repaired ---------- Nothing Alien Tech Used ----------------- None Achievements -------------- None Challenges ------------ None Game ------ Seed IonicCoilCarapace Manual? 0 Play Time 00:57:21 Cumulative 86.5 hours Start 2025.07.05 @ 14:48:32 End 2025.07.05 @ 15:47:01 Sessions 1 Manual Loads 0 Difficulty Rogue Special Mode None Game No. 42 Rogue 42 Adventurer 0 Explorer 0 Win Type - Total 2 Types 1/0/1/0/0/0/0/0/0/0 Lore% 58 Gallery% 61 Achievement% 50 Wizard Run 0 Options --------- Layout 0 ASCII 0 Keyboard 0 Movement Vi Keybinds 0 Fullscreen 1 Font 24/Tamsyn Map View 76x50 Zoom Use 0% Tactical HUD 1 Map Filters NONE Filters NONE Steam 1 RUN: 14269c03-61f7-47fd-ac38-99c627c8223c